[Event "elllobregat Open Chess TnmT- 2nd Edition 2021"]
[Site "Castelldefels, Spain"]
[Date "2021.12.08"]
[Round "9.1"]
[White "Santos Latasa, Jaime"]
[Black "Abdusattorov, Nodirbek"]
[Result "1/2-1/2"]
[TimeControl "90min/40moves + 30min/end + 30sec increment per move starting from move 1"]
[WhiteTitle "GM"]
[BlackTitle "GM"]
[WhiteFideId "2293307"]
[BlackFideId "14204118"]
[WhiteElo "2633"]
[BlackElo "2646"]

1. e4 {[%clk 01:26:24]} {[%emt 00:03:58]} e5 {[%clk 01:30:52]} {[%emt
00:00:08]} 2. Nf3 {[%clk 01:26:45]} {[%emt 00:00:09]} Nc6 {[%clk 01:31:15]}
{[%emt 00:00:07]} 3. Bc4 {[%clk 01:27:07]} {[%emt 00:00:08]} Bc5 {[%clk
01:31:35]} {[%emt 00:00:10]} 4. c3 {[%clk 01:27:14]} {[%emt 00:00:24]} Nf6
{[%clk 01:31:50]} {[%emt 00:00:14]} 5. d3 {[%clk 01:27:38]} {[%emt 00:00:06]}
d6 {[%clk 01:29:58]} {[%emt 00:02:22]} 6. O-O {[%clk 01:26:58]} {[%emt
00:01:10]} a6 {[%clk 01:30:13]} {[%emt 00:00:15]} 7. a4 {[%clk 01:27:16]}
{[%emt 00:00:13]} Ba7 {[%clk 01:30:28]} {[%emt 00:00:14]} 8. Re1 {[%clk
01:27:30]} {[%emt 00:00:16]} h6 {[%clk 01:29:57]} {[%emt 00:01:02]} 9. Nbd2
{[%clk 01:27:43]} {[%emt 00:00:17]} g5 {[%clk 01:29:27]} {[%emt 00:01:00]} 10.
b4 {[%clk 01:27:50]} {[%emt 00:00:24]} Nh7 {[%clk 01:28:47]} {[%emt 00:01:09]}
11. Nb3 {[%clk 01:24:49]} {[%emt 00:03:31]} g4 {[%clk 01:28:11]} {[%emt
00:01:06]} 12. b5 {[%clk 01:24:31]} {[%emt 00:00:49]} gxf3 {[%clk 01:24:55]}
{[%emt 00:03:46]} 13. Qxf3 {[%clk 01:24:32]} {[%emt 00:00:29]} Qf6 {[%clk
01:25:12]} {[%emt 00:00:12]} 14. Qxf6 {[%clk 01:24:39]} {[%emt 00:00:22]} Nxf6
{[%clk 01:25:37]} {[%emt 00:00:05]} 15. bxc6 {[%clk 01:25:03]} {[%emt
00:00:06]} bxc6 {[%clk 01:25:49]} {[%emt 00:00:19]} 16. Na5 {[%clk 01:18:56]}
{[%emt 00:06:36]} Bd7 {[%clk 01:24:55]} {[%emt 00:01:23]} 17. Bb3 {[%clk
01:16:57]} {[%emt 00:02:31]} Rb8 {[%clk 01:14:15]} {[%emt 00:11:10]} 18. Bd1
{[%clk 01:15:04]} {[%emt 00:02:23]} h5 {[%clk 01:10:26]} {[%emt 00:04:19]} 19.
Bg5 {[%clk 01:06:58]} {[%emt 00:08:36]} Ng8 {[%clk 01:06:31]} {[%emt 00:04:25]}
20. Be2 {[%clk 01:04:22]} {[%emt 00:03:07]} f6 {[%clk 01:06:01]} {[%emt
00:01:00]} 21. Be3 {[%clk 01:01:28]} {[%emt 00:03:23]} Bxe3 {[%clk 01:04:42]}
{[%emt 00:01:49]} 22. fxe3 {[%clk 01:00:35]} {[%emt 00:01:23]} Ne7 {[%clk
01:05:07]} {[%emt 00:00:05]} 23. Reb1 {[%clk 01:00:55]} {[%emt 00:00:10]} Rc8
{[%clk 00:53:14]} {[%emt 00:12:23]} 24. d4 {[%clk 00:56:43]} {[%emt 00:04:43]}
Bg4 {[%clk 00:53:14]} {[%emt 00:00:29]} 25. Bf1 {[%clk 00:54:05]} {[%emt
00:03:08]} Kd7 {[%clk 00:52:31]} {[%emt 00:01:13]} 26. Rb7 {[%clk 00:53:33]}
{[%emt 00:01:02]} Rb8 {[%clk 00:49:53]} {[%emt 00:03:08]} 27. Rab1 {[%clk
00:53:21]} {[%emt 00:00:42]} Rxb7 {[%clk 00:50:16]} {[%emt 00:00:08]} 28. Rxb7
{[%clk 00:53:47]} {[%emt 00:00:05]} Ra8 {[%clk 00:36:49]} {[%emt 00:13:56]} 29.
Nc4 {[%clk 00:50:53]} {[%emt 00:03:24]} Kd8 {[%clk 00:37:18]} {[%emt 00:00:01]}
30. a5 {[%clk 00:50:44]} {[%emt 00:00:39]} d5 {[%clk 00:36:19]} {[%emt
00:01:29]} 31. Nd2 {[%clk 00:49:09]} {[%emt 00:02:05]} Nc8 {[%clk 00:36:33]}
{[%emt 00:00:17]} 32. Rb4 {[%clk 00:45:58]} {[%emt 00:03:41]} Nd6 {[%clk
00:36:38]} {[%emt 00:00:25]} 33. Bd3 {[%emt 00:05:08]} Ke7 {[%emt 00:04:37]} 34.
Kf2 {[%clk 00:42:39]} {[%emt 00:00:04]} Be6 {[%emt 00:05:19]} 1/2-1/2

[Event "elllobregat Open Chess TnmT- 2nd Edition 2021"]
[Site "Castelldefels, Spain"]
[Date "2021.12.08"]
[Round "9.2"]
[White "Sosa, Tomas"]
[Black "Karthikeyan, Murali"]
[Result "0-1"]
[TimeControl "90min/40moves + 30min/end + 30sec increment per move starting from move 1"]
[WhiteTitle "IM"]
[BlackTitle "GM"]
[WhiteFideId "121576"]
[BlackFideId "5074452"]
[WhiteElo "2542"]
[BlackElo "2630"]

1. e4 {[%clk 01:29:54]} {[%emt 00:00:59]} c5 {[%clk 01:30:49]} {[%emt
00:00:18]} 2. Nf3 {[%clk 01:30:18]} {[%emt 00:00:06]} Nc6 {[%clk 01:31:15]}
{[%emt 00:00:04]} 3. Bb5 {[%clk 01:28:15]} {[%emt 00:02:32]} g6 {[%clk
01:31:24]} {[%emt 00:00:21]} 4. Bxc6 {[%clk 01:26:30]} {[%emt 00:02:15]} bxc6
{[%clk 01:26:53]} {[%emt 00:05:00]} 5. d4 {[%clk 01:26:18]} {[%emt 00:00:42]}
Bg7 {[%clk 01:27:13]} {[%emt 00:00:09]} 6. dxc5 {[%clk 01:26:38]} {[%emt
00:00:11]} Qa5+ {[%clk 01:27:34]} {[%emt 00:00:09]} 7. Nbd2 {[%clk 01:26:54]}
{[%emt 00:00:13]} Qxc5 {[%emt 00:00:15]} 8. Rb1 {[%emt 00:04:03]} a5 {[%clk
01:24:59]} {[%emt 00:00:22]} 9. O-O {[%clk 01:21:34]} {[%emt 00:05:15]} d6
{[%clk 01:21:47]} {[%emt 00:03:41]} 10. c4 {[%clk 01:19:01]} {[%emt 00:03:03]}
Nf6 {[%clk 01:20:33]} {[%emt 00:01:44]} 11. b3 {[%emt 00:05:17]} O-O {[%clk
01:12:54]} {[%emt 00:11:48]} 12. Bb2 {[%emt 00:13:32]} Bg4 {[%emt 00:11:53]} 13.
Qc2 {[%emt 00:14:16]} Nh5 {[%emt 00:03:11]} 14. Bxg7 {[%emt 00:01:03]} Nxg7
{[%emt 00:01:49]} 15. Qc3 {[%emt 00:02:35]} Ne6 {[%emt 00:08:38]} 16. Rfe1
{[%emt 00:09:10]} Bxf3 {[%emt 00:01:26]} 17. Nxf3 {[%clk 00:40:32]} {[%emt
00:00:05]} Rfb8 {[%emt 00:01:54]} 18. e5 {[%emt 00:01:57]} d5 {[%emt 00:04:33]}
19. Rec1 {[%emt 00:04:50]} Rb4 {[%emt 00:15:15]} 20. cxd5 {[%clk 00:18:55]}
{[%emt 00:00:39]} Qxc3 {[%clk 00:36:12]} {[%emt 00:00:38]} 21. Rxc3 {[%clk
00:19:23]} {[%emt 00:00:02]} cxd5 {[%clk 00:36:41]} {[%emt 00:00:02]} 22. Rbc1
{[%emt 00:09:01]} a4 {[%emt 00:04:32]} 23. Rc8+ {[%clk 00:16:01]} {[%emt
00:00:03]} Rxc8 {[%clk 00:28:04]} {[%emt 00:00:24]} 24. Rxc8+ {[%clk 00:16:26]}
{[%emt 00:00:05]} Kg7 {[%emt 00:00:44]} 25. Rc3 {[%clk 00:16:05]} {[%emt
00:00:10]} g5 {[%emt 00:00:58]} 26. h3 {[%clk 00:16:03]} Kg6 {[%clk 00:27:26]}
{[%emt 00:01:37]} 27. Rc6 {[%emt 00:03:59]} axb3 {[%clk 00:21:51]} {[%emt
00:04:21]} 28. axb3 {[%emt 00:02:36]} h5 {[%clk 00:12:34]} {[%emt 00:07:15]} 29.
Ra6 {[%emt 00:01:07]} Rxb3 {[%clk 00:11:29]} {[%emt 00:00:47]} 30. Nd4 {[%clk
00:11:56]} {[%emt 00:03:30]} Rb1+ {[%clk 00:11:52]} {[%emt 00:00:07]} 31. Kh2
{[%clk 00:12:21]} {[%emt 00:00:04]} Re1 {[%clk 00:11:57]} {[%emt 00:00:24]} 32.
Nxe6 {[%clk 00:07:21]} {[%emt 00:05:31]} fxe6 {[%clk 00:12:07]} {[%emt
00:00:20]} 33. Rxe6+ {[%clk 00:07:45]} {[%emt 00:00:06]} Kf7 {[%emt 00:02:01]}
34. Ra6 {[%clk 00:05:33]} {[%emt 00:00:59]} Rxe5 {[%clk 00:11:44]} {[%emt
00:01:05]} 35. Kg3 {[%emt 00:01:29]} e6 {[%clk 00:10:48]} {[%emt 00:00:08]} 36.
Ra7+ {[%clk 00:05:37]} {[%emt 00:00:45]} Kf6 {[%clk 00:11:09]} {[%emt
00:00:09]} 37. Rd7 {[%emt 00:03:53]} Re4 {[%emt 00:01:45]} 38. Kf3 {[%clk
00:03:17]} {[%emt 00:01:06]} Re1 {[%clk 00:06:51]} {[%emt 00:01:54]} 39. Kg3
{[%clk 00:02:30]} {[%emt 00:01:17]} Ke5 {[%clk 00:03:42]} {[%emt 00:03:38]} 40.
Rg7 {[%clk 00:32:47]} {[%emt 00:00:13]} Kf5 {[%clk 00:33:49]} {[%emt 00:00:23]}
41. Rd7 {[%clk 00:28:49]} {[%emt 00:04:26]} Ra1 {[%clk 00:24:00]} {[%emt
00:10:20]} 42. h4 {[%emt 00:04:41]} gxh4+ {[%clk 00:20:31]} {[%emt 00:02:37]}
43. Kxh4 {[%clk 00:26:24]} {[%emt 00:00:06]} Rh1+ {[%clk 00:20:39]} {[%emt
00:00:23]} 44. Kg3 {[%clk 00:23:34]} {[%emt 00:00:07]} Ke4 {[%clk 00:20:07]} 45.
f3+ {[%clk 00:23:59]} {[%emt 00:04:20]} Kd4 {[%clk 00:20:19]} {[%emt 00:00:18]}
46. f4 {[%emt 00:05:31]} h4+ {[%clk 00:18:34]} {[%emt 00:00:05]} 47. Kf2 {[%clk
00:20:25]} {[%emt 00:01:12]} h3 {[%emt 00:09:53]} 48. gxh3 {[%clk 00:09:46]}
{[%emt 00:04:34]} Rxh3 {[%emt 00:04:26]} 49. Ra7 {[%emt 00:03:38]} Ke4 {[%clk
00:14:27]} {[%emt 00:01:08]} 50. Ra4+ {[%clk 00:02:35]} {[%emt 00:01:20]} Kf5
{[%clk 00:13:44]} {[%emt 00:01:12]} 51. Ra6 {[%emt 00:00:53]} Rh4 {[%clk
00:13:45]} {[%emt 00:00:06]} 52. Ke3 {[%clk 00:02:36]} {[%emt 00:00:29]} Rxf4
{[%clk 00:14:04]} {[%emt 00:00:11]} 53. Rd6 {[%clk 00:02:36]} {[%emt 00:00:30]}
Rh4 {[%clk 00:14:20]} {[%emt 00:00:14]} 54. Kd3 {[%clk 00:02:48]} {[%emt
00:00:17]} Ke5 {[%clk 00:14:35]} {[%emt 00:00:16]} 55. Ra6 {[%clk 00:03:02]}
{[%emt 00:00:16]} Rh3+ {[%clk 00:15:01]} {[%emt 00:00:04]} 56. Kd2 {[%clk
00:03:22]} {[%emt 00:00:09]} d4 {[%clk 00:15:24]} {[%emt 00:00:07]} 57. Rb6
{[%clk 00:02:58]} {[%emt 00:00:55]} Kd5 {[%clk 00:15:48]} {[%emt 00:00:05]} 58.
Rb8 {[%clk 00:03:01]} {[%emt 00:00:27]} e5 {[%clk 00:16:07]} {[%emt 00:00:12]}
59. Rg8 {[%clk 00:03:25]} {[%emt 00:00:05]} Rh2+ {[%clk 00:16:29]} {[%emt
00:00:07]} 60. Kd1 {[%clk 00:03:43]} {[%emt 00:00:12]} d3 {[%clk 00:16:10]}
{[%emt 00:00:50]} 61. Rg4 {[%clk 00:02:58]} {[%emt 00:01:15]} e4 {[%clk
00:16:31]} {[%emt 00:00:09]} 62. Rg8 {[%clk 00:03:12]} {[%emt 00:00:16]} Kd4
{[%clk 00:16:56]} {[%emt 00:00:05]} 63. Rd8+ {[%clk 00:03:14]} {[%emt
00:00:28]} Ke3 {[%clk 00:17:20]} {[%emt 00:00:05]} 64. Kc1 {[%clk 00:03:41]}
{[%emt 00:00:03]} Rh1+ {[%clk 00:17:43]} {[%emt 00:00:08]} 65. Kb2 {[%clk
00:04:06]} {[%emt 00:00:05]} d2 {[%clk 00:17:59]} {[%emt 00:00:14]} 0-1

[Event "elllobregat Open Chess TnmT- 2nd Edition 2021"]
[Site "Castelldefels, Spain"]
[Date "2021.12.08"]
[Round "9.3"]
[White "Erigaisi, Arjun"]
[Black "Muradli, Mahammad"]
[Result "1/2-1/2"]
[TimeControl "90min/40moves + 30min/end + 30sec increment per move starting from move 1"]
[WhiteTitle "GM"]
[BlackTitle "IM"]
[WhiteFideId "35009192"]
[BlackFideId "13409301"]
[WhiteElo "2627"]
[BlackElo "2501"]

1. d4 {[%emt 00:09:29]} Nf6 {[%clk 01:22:01]} {[%emt 00:00:30]} 2. c4 {[%clk
01:30:23]} {[%emt 00:00:07]} e6 {[%clk 01:22:27]} {[%emt 00:00:04]} 3. Nc3
{[%clk 01:30:32]} {[%emt 00:00:21]} Bb4 {[%clk 01:22:52]} {[%emt 00:00:06]} 4.
f3 {[%clk 01:28:46]} {[%emt 00:02:16]} d5 {[%clk 01:23:14]} {[%emt 00:00:08]} 5.
a3 {[%clk 01:28:45]} {[%emt 00:00:30]} Bd6 {[%emt 00:05:18]} 6. Bg5 {[%emt
00:13:29]} h6 {[%clk 01:11:49]} {[%emt 00:00:20]} 7. Bh4 {[%clk 01:22:42]}
{[%emt 00:00:21]} c5 {[%clk 01:10:50]} {[%emt 00:01:30]} 8. cxd5 {[%emt
00:02:39]} exd5 {[%emt 00:01:06]} 9. e3 {[%emt 00:05:40]} O-O {[%clk 01:03:55]}
{[%emt 00:00:55]} 10. Bd3 {[%emt 00:05:12]} Re8 {[%clk 00:58:44]} {[%emt
00:01:07]} 11. Nge2 {[%emt 00:07:41]} Be7 {[%emt 00:07:49]} 12. O-O {[%clk
01:17:35]} {[%emt 00:00:12]} Nc6 {[%emt 00:06:27]} 13. Bc2 {[%emt 00:10:00]}
Be6 {[%emt 00:10:29]} 14. Kh1 {[%emt 00:09:10]} Nd7 {[%emt 00:05:20]} 15. Bf2
{[%emt 00:00:28]} cxd4 {[%emt 00:00:18]} 16. exd4 {[%clk 00:56:51]} {[%emt
00:00:07]} Bd6 {[%clk 00:30:51]} {[%emt 00:05:39]} 17. h3 {[%emt 00:18:26]} Rc8
{[%emt 00:00:43]} 18. f4 {[%clk 00:39:13]} {[%emt 00:03:14]} f5 {[%emt
00:03:43]} 19. Qd3 {[%clk 00:35:34]} {[%emt 00:01:35]} Qf6 {[%emt 00:06:14]} 20.
Qf3 {[%emt 00:01:25]} Qf7 {[%clk 00:17:10]} {[%emt 00:01:05]} 21. g4 {[%emt
00:01:25]} Ne7 {[%emt 00:07:53]} 22. g5 {[%clk 00:26:57]} {[%emt 00:00:06]}
hxg5 {[%clk 00:15:21]} {[%emt 00:00:05]} 23. fxg5 {[%clk 00:27:24]} {[%emt
00:00:03]} f4 {[%clk 00:15:40]} {[%emt 00:00:11]} 24. Bg1 {[%clk 00:27:48]}
{[%emt 00:00:06]} Ng6 {[%clk 00:12:54]} {[%emt 00:03:17]} 25. Qd3 {[%clk
00:27:44]} {[%emt 00:00:33]} Ndf8 {[%clk 00:10:19]} {[%emt 00:03:05]} 26. Bh2
{[%emt 00:03:16]} Qd7 {[%clk 00:06:33]} {[%emt 00:01:26]} 27. Ba4 {[%clk
00:21:47]} {[%emt 00:06:30]} Qf7 {[%clk 00:06:49]} {[%emt 00:00:13]} 28. Bxe8
{[%clk 00:20:27]} {[%emt 00:01:50]} Rxe8 {[%clk 00:07:19]} {[%emt 00:00:01]} 29.
Qf3 {[%emt 00:05:21]} Nh4 {[%clk 00:02:24]} {[%emt 00:00:05]} 30. Qf2 {[%clk
00:21:21]} {[%emt 00:00:04]} Nfg6 {[%emt 00:01:07]} 31. Bxf4 {[%clk 00:21:21]}
{[%emt 00:00:16]} Rf8 {[%clk 00:00:48]} {[%emt 00:01:44]} 32. Qg3 {[%clk
00:14:32]} {[%emt 00:07:19]} Nf5 {[%clk 00:01:06]} {[%emt 00:00:12]} 33. Qd3
{[%emt 00:00:50]} Nxf4 {[%clk 00:00:58]} {[%emt 00:00:28]} 34. Nxf4 {[%clk
00:14:47]} {[%emt 00:00:05]} Bxf4 {[%clk 00:01:24]} {[%emt 00:00:04]} 35. Rxf4
{[%clk 00:15:12]} {[%emt 00:00:04]} Ng3+ {[%clk 00:01:52]} {[%emt 00:00:02]} 36.
Qxg3 {[%clk 00:15:35]} {[%emt 00:00:07]} Qxf4 {[%clk 00:02:20]} {[%emt
00:00:02]} 37. Qxf4 {[%clk 00:15:56]} {[%emt 00:00:09]} Rxf4 {[%clk 00:02:50]}
38. Re1 {[%clk 00:16:24]} {[%emt 00:00:01]} Kf7 {[%clk 00:01:42]} {[%emt
00:01:38]} 39. Nb5 {[%clk 00:16:19]} {[%emt 00:00:36]} Bxh3 {[%clk 00:01:44]}
{[%emt 00:00:28]} 40. Re5 {[%emt 00:01:28]} Bd7 {[%clk 00:30:35]} {[%emt
00:00:31]} 41. Nd6+ {[%clk 00:45:36]} {[%emt 00:01:22]} Kg6 {[%clk 00:29:25]}
{[%emt 00:01:40]} 42. Re7 {[%clk 00:45:59]} {[%emt 00:00:07]} 1/2-1/2

[Event "elllobregat Open Chess TnmT- 2nd Edition 2021"]
[Site "Castelldefels, Spain"]
[Date "2021.12.08"]
[Round "9.4"]
[White "Sethuraman, S.P."]
[Black "Garriga Cazorla, Pere"]
[Result "0-1"]
[TimeControl "90min/40moves + 30min/end + 30sec increment per move starting from move 1"]
[WhiteTitle "GM"]
[BlackTitle "IM"]
[WhiteFideId "5021596"]
[BlackFideId "32011601"]
[WhiteElo "2620"]
[BlackElo "2477"]

1. e4 {[%clk 01:30:50]} {[%emt 00:00:09]} c5 {[%clk 01:30:51]} {[%emt
00:00:10]} 2. Nf3 {[%clk 01:31:13]} {[%emt 00:00:07]} d6 {[%clk 01:31:15]}
{[%emt 00:00:06]} 3. d4 {[%clk 01:31:36]} {[%emt 00:00:06]} cxd4 {[%clk
01:31:41]} {[%emt 00:00:04]} 4. Nxd4 {[%clk 01:32:01]} {[%emt 00:00:06]} Nf6
{[%clk 01:32:06]} {[%emt 00:00:05]} 5. Nc3 {[%clk 01:32:25]} {[%emt 00:00:06]}
a6 {[%clk 01:32:32]} {[%emt 00:00:04]} 6. h3 {[%clk 01:32:49]} {[%emt
00:00:05]} e5 {[%clk 01:32:20]} {[%emt 00:00:43]} 7. Nf3 {[%clk 01:33:10]}
{[%emt 00:00:09]} Nbd7 {[%clk 01:14:30]} {[%emt 00:18:19]} 8. Be3 {[%clk
01:29:53]} {[%emt 00:03:47]} b5 {[%clk 01:07:53]} {[%emt 00:07:08]} 9. a4
{[%clk 01:26:56]} {[%emt 00:03:26]} b4 {[%clk 01:05:44]} {[%emt 00:02:39]} 10.
Nd5 {[%clk 01:27:21]} {[%emt 00:00:05]} Bb7 {[%clk 01:04:50]} {[%emt 00:01:25]}
11. Bc4 {[%clk 01:20:42]} {[%emt 00:07:08]} Be7 {[%clk 01:04:49]} {[%emt
00:00:31]} 12. Qe2 {[%clk 00:43:21]} {[%emt 00:37:50]} O-O {[%clk 00:55:24]}
{[%emt 00:09:55]} 13. O-O-O {[%emt 00:01:47]} Nxd5 {[%clk 00:50:52]} {[%emt
00:03:26]} 14. exd5 {[%clk 00:42:22]} {[%emt 00:01:48]} Qa5 {[%clk 00:40:50]}
{[%emt 00:10:31]} 15. Bb3 {[%clk 00:39:14]} {[%emt 00:03:38]} f5 {[%clk
00:38:00]} {[%emt 00:03:20]} 16. Kb1 {[%clk 00:31:57]} {[%emt 00:07:47]} Rae8
{[%clk 00:35:15]} {[%emt 00:03:15]} 17. Qc4 {[%clk 00:09:49]} {[%emt 00:22:37]}
Rc8 {[%clk 00:31:52]} {[%emt 00:03:53]} 18. Qe2 {[%clk 00:10:14]} {[%emt
00:00:05]} Bf6 {[%clk 00:31:46]} {[%emt 00:00:37]} 19. g3 {[%clk 00:06:18]}
{[%emt 00:04:26]} Nc5 {[%clk 00:23:37]} {[%emt 00:08:39]} 20. Bxc5 {[%clk
00:06:43]} {[%emt 00:00:05]} Qxc5 {[%clk 00:24:03]} {[%emt 00:00:04]} 21. g4
{[%clk 00:06:42]} {[%emt 00:00:30]} e4 {[%clk 00:23:11]} {[%emt 00:01:23]} 22.
Nd2 {[%clk 00:06:29]} {[%emt 00:00:43]} g6 {[%clk 00:22:42]} {[%emt 00:00:59]}
23. gxf5 {[%clk 00:06:33]} {[%emt 00:00:26]} gxf5 {[%clk 00:23:10]} {[%emt
00:00:02]} 24. Nc4 {[%clk 00:06:03]} {[%emt 00:01:00]} Kh8 {[%clk 00:21:34]}
{[%emt 00:02:07]} 25. Ne3 {[%clk 00:04:56]} {[%emt 00:01:37]} Bd4 {[%clk
00:21:12]} {[%emt 00:00:52]} 26. Qd2 {[%clk 00:04:28]} {[%emt 00:00:57]} Be5
{[%clk 00:20:37]} {[%emt 00:01:06]} 27. Nc4 {[%clk 00:04:37]} {[%emt 00:00:21]}
Bg7 {[%clk 00:19:39]} {[%emt 00:01:27]} 28. Rhg1 {[%clk 00:04:37]} {[%emt
00:00:30]} Rc7 {[%clk 00:20:08]} {[%emt 00:00:02]} 29. h4 {[%clk 00:03:39]}
{[%emt 00:01:27]} f4 {[%clk 00:19:23]} {[%emt 00:01:15]} 30. h5 {[%clk
00:01:17]} {[%emt 00:02:52]} Re7 {[%clk 00:17:25]} {[%emt 00:02:28]} 31. h6
{[%clk 00:01:00]} {[%emt 00:00:48]} Bxh6 {[%clk 00:17:40]} {[%emt 00:00:15]} 32.
Rh1 {[%clk 00:01:25]} {[%emt 00:00:04]} Bg7 {[%clk 00:15:33]} {[%emt 00:02:37]}
33. Rh5 {[%clk 00:01:50]} {[%emt 00:00:05]} Rf6 {[%clk 00:13:51]} {[%emt
00:02:12]} 34. Re1 {[%clk 00:00:42]} {[%emt 00:01:38]} a5 {[%clk 00:12:21]}
{[%emt 00:02:01]} 35. Qd1 {[%clk 00:00:51]} {[%emt 00:00:20]} Ba6 {[%clk
00:12:12]} {[%emt 00:00:40]} 36. Nd2 {[%clk 00:01:13]} {[%emt 00:00:08]} Qd4
{[%clk 00:09:41]} {[%emt 00:03:00]} 37. Qc1 {[%clk 00:01:39]} {[%emt 00:00:04]}
Rff7 {[%clk 00:08:29]} {[%emt 00:01:42]} 38. Reh1 {[%clk 00:00:50]} {[%emt
00:01:18]} Bf6 {[%clk 00:08:57]} {[%emt 00:00:02]} 39. Rf5 {[%clk 00:00:47]}
{[%emt 00:00:33]} Qxf2 {[%clk 00:06:55]} {[%emt 00:02:33]} 40. Bc4 {[%clk
00:30:34]} {[%emt 00:00:43]} e3 {[%clk 00:35:38]} {[%emt 00:01:46]} 41. Ne4
{[%clk 00:29:08]} {[%emt 00:01:56]} Rxe4 {[%clk 00:33:12]} {[%emt 00:02:57]} 42.
Bxa6 {[%clk 00:29:34]} {[%emt 00:00:04]} e2 {[%clk 00:32:56]} {[%emt 00:00:46]}
43. Re1 {[%clk 00:27:41]} {[%emt 00:02:22]} f3 {[%clk 00:32:10]} {[%emt
00:01:17]} 44. Ka2 {[%clk 00:27:14]} {[%emt 00:00:57]} Qe3 {[%clk 00:29:59]}
{[%emt 00:02:41]} 45. Qxe3 {[%clk 00:26:12]} {[%emt 00:01:32]} Rxe3 {[%clk
00:30:22]} {[%emt 00:00:07]} 46. Bc8 {[%clk 00:26:33]} {[%emt 00:00:08]} Rf8
{[%clk 00:30:00]} {[%emt 00:00:53]} 47. Be6 {[%clk 00:26:48]} {[%emt 00:00:13]}
Bg7 {[%clk 00:29:55]} {[%emt 00:00:36]} 48. Rxf8+ {[%clk 00:27:01]} {[%emt
00:00:17]} Bxf8 {[%clk 00:30:18]} {[%emt 00:00:08]} 49. Rg1 {[%clk 00:27:23]}
{[%emt 00:00:08]} Rxe6 {[%clk 00:30:09]} {[%emt 00:00:39]} 0-1